[Event "Titled Tuesday Blitz April 19 Early 2022"]
[White "Ning, Kaiyu"]
[Black "Chigaev, Maksim"]
[WhiteFideId "8614750"]
[BlackFideId "4108116"]
[WhiteElo "2013"]
[BlackElo "2478"]
[Result "1-0"]
[Round "11"]
[TimeControl "180+1"]
[Date "2022.04.19"]
[WhiteClock "0:00:23"]
[BlackClock "0:00:46"]

1. d4 {[%clk 0:03:00]}  Nf6 {[%clk 0:03:00]} 2. c4 {[%clk 0:03:01]}  g6 {[%clk 0:03:00]} 3. Nc3 {[%clk 0:03:01]}  d5 {[%clk 0:03:01]} 4. cxd5 {[%clk 0:03:02]}  Nxd5 {[%clk 0:03:01]} 5. e4 {[%clk 0:03:02]}  Nxc3 {[%clk 0:03:02]} 6. bxc3 {[%clk 0:03:03]}  Bg7 {[%clk 0:03:03]} 7. Nf3 {[%clk 0:03:04]}  c5 {[%clk 0:03:04]} 8. Be3 {[%clk 0:03:05]}  Bg4 {[%clk 0:03:04]} 9. Rb1 {[%clk 0:02:56]}  Bxf3 {[%clk 0:03:02]} 10. gxf3 {[%clk 0:02:48]}  O-O {[%clk 0:03:02]} 11. Rxb7 {[%clk 0:02:43]}  Nc6 {[%clk 0:03:00]} 12. Bb5 {[%clk 0:02:34]}  cxd4 {[%clk 0:02:35]} 13. Bxc6 {[%clk 0:02:28]}  dxe3 {[%clk 0:02:26]} 14. Rd7 {[%clk 0:02:28]}  Qa5 {[%clk 0:01:28]} 15. Bxa8 {[%clk 0:02:28]}  Rxa8 {[%clk 0:01:28]} 16. fxe3 {[%clk 0:02:22]}  Bxc3+ {[%clk 0:01:25]} 17. Kf2 {[%clk 0:02:20]}  Rb8 {[%clk 0:01:19]} 18. Qd5 {[%clk 0:02:05]}  Rb2+ {[%clk 0:01:15]} 19. Kg3 {[%clk 0:02:05]}  Rb5 {[%clk 0:01:14]} 20. Qa8+ {[%clk 0:01:45]}  Kg7 {[%clk 0:01:12]} 21. h4 {[%clk 0:01:42]}  Qxa2 {[%clk 0:01:01]} 22. Rd8 {[%clk 0:01:04]}  Qe2 {[%clk 0:00:46]} 23. Rg8+ {[%clk 0:00:59]}  Kh6 {[%clk 0:00:46]} 24. Qf8+ {[%clk 0:00:35]}  Kh5 {[%clk 0:00:46]} 25. Qxf7 {[%clk 0:00:23]} 1-0


[Site "https://www.chess.com"]

[Event "Titled Tuesday Blitz April 19 Early 2022"]
[White "Nozdrachev, Leonid"]
[Black "Jakubowski, Krzysztof"]
[WhiteFideId "24113433"]
[BlackFideId "1112848"]
[WhiteElo "2242"]
[BlackElo "2365"]
[Result "0-1"]
[Round "11"]
[TimeControl "180+1"]
[Date "2022.04.19"]
[WhiteClock "0:00:15"]
[BlackClock "0:00:31"]

1. e4 {[%clk 0:02:57]}  c5 {[%clk 0:02:59]} 2. c3 {[%clk 0:02:56]}  Nf6 {[%clk 0:02:58]} 3. e5 {[%clk 0:02:55]}  Nd5 {[%clk 0:02:59]} 4. Nf3 {[%clk 0:02:56]}  e6 {[%clk 0:02:58]} 5. d4 {[%clk 0:02:55]}  cxd4 {[%clk 0:02:58]} 6. cxd4 {[%clk 0:02:55]}  d6 {[%clk 0:02:58]} 7. a3 {[%clk 0:02:50]}  Nc6 {[%clk 0:02:56]} 8. Bd3 {[%clk 0:02:49]}  dxe5 {[%clk 0:02:45]} 9. dxe5 {[%clk 0:02:47]}  Be7 {[%clk 0:02:44]} 10. O-O {[%clk 0:02:45]}  Bd7 {[%clk 0:02:42]} 11. Qc2 {[%clk 0:02:41]}  Rc8 {[%clk 0:02:40]} 12. Nc3 {[%clk 0:02:40]}  Nxc3 {[%clk 0:02:40]} 13. bxc3 {[%clk 0:02:41]}  Na5 {[%clk 0:02:34]} 14. Bxh7 {[%clk 0:02:37]}  Bb5 {[%clk 0:02:27]} 15. Rd1 {[%clk 0:02:32]}  Qc7 {[%clk 0:02:26]} 16. Be4 {[%clk 0:02:27]}  b6 {[%clk 0:02:15]} 17. a4 {[%clk 0:01:56]}  Bc4 {[%clk 0:02:08]} 18. Re1 {[%clk 0:01:26]}  Bb3 {[%clk 0:01:53]} 19. Qe2 {[%clk 0:01:24]}  Bc4 {[%clk 0:01:46]} 20. Qe3 {[%clk 0:01:23]}  Nb3 {[%clk 0:01:41]} 21. Rb1 {[%clk 0:01:22]}  Nc5 {[%clk 0:01:40]} 22. Bc2 {[%clk 0:01:16]}  Bd5 {[%clk 0:01:35]} 23. Nd4 {[%clk 0:01:13]}  Qd7 {[%clk 0:01:28]} 24. Qg3 {[%clk 0:01:09]}  Bf8 {[%clk 0:01:24]} 25. Ba3 {[%clk 0:00:57]}  Nxa4 {[%clk 0:01:21]} 26. Bxf8 {[%clk 0:00:52]}  Kxf8 {[%clk 0:01:21]} 27. Bxa4 {[%clk 0:00:46]}  Qxa4 {[%clk 0:01:22]} 28. Ra1 {[%clk 0:00:45]}  Qd7 {[%clk 0:01:20]} 29. h3 {[%clk 0:00:45]}  Rh6 {[%clk 0:01:19]} 30. Qf4 {[%clk 0:00:42]}  Rg6 {[%clk 0:01:15]} 31. g3 {[%clk 0:00:42]}  Rxc3 {[%clk 0:01:15]} 32. Rec1 {[%clk 0:00:37]}  Rc5 {[%clk 0:01:05]} 33. Qe3 {[%clk 0:00:28]}  Kg8 {[%clk 0:00:58]} 34. Ne2 {[%clk 0:00:27]}  Ba8 {[%clk 0:00:43]} 35. Nf4 {[%clk 0:00:19]}  Qc6 {[%clk 0:00:39]} 36. Kh2 {[%clk 0:00:17]}  Rg5 {[%clk 0:00:32]} 37. Rxc5 {[%clk 0:00:16]}  bxc5 {[%clk 0:00:32]} 38. Rxa7 {[%clk 0:00:15]}  Qh1# {[%clk 0:00:31]} 0-1


[Site "https://www.chess.com"]

[Event "Titled Tuesday Blitz April 19 Early 2022"]
[White "Nugumanov, Bakhtiyar"]
[Black "Thomas, Anysia"]
[WhiteFideId "13701797"]
[BlackFideId "670472"]
[WhiteElo "2262"]
[BlackElo "2002"]
[Result "0-1"]
[Round "11"]
[TimeControl "180+1"]
[Date "2022.04.19"]
[WhiteClock "0:00:03"]
[BlackClock "0:00:19"]

1. Nf3 {[%clk 0:03:00]}  c5 {[%clk 0:02:52]} 2. c4 {[%clk 0:02:59]}  g6 {[%clk 0:02:51]} 3. e4 {[%clk 0:02:57]}  Bg7 {[%clk 0:02:51]} 4. d4 {[%clk 0:02:58]}  cxd4 {[%clk 0:02:49]} 5. Nxd4 {[%clk 0:02:59]}  Nc6 {[%clk 0:02:50]} 6. Be3 {[%clk 0:02:59]}  Nf6 {[%clk 0:02:50]} 7. Nc3 {[%clk 0:03:00]}  d6 {[%clk 0:02:48]} 8. Be2 {[%clk 0:02:56]}  Nxd4 {[%clk 0:02:48]} 9. Bxd4 {[%clk 0:02:56]}  O-O {[%clk 0:02:46]} 10. O-O {[%clk 0:02:57]}  Qa5 {[%clk 0:02:46]} 11. a3 {[%clk 0:02:44]}  Be6 {[%clk 0:02:43]} 12. b4 {[%clk 0:02:43]}  Qc7 {[%clk 0:02:39]} 13. Rc1 {[%clk 0:02:39]}  Bxc4 {[%clk 0:02:28]} 14. Bxc4 {[%clk 0:02:28]}  Qxc4 {[%clk 0:02:27]} 15. Nd5 {[%clk 0:02:25]}  Qa2 {[%clk 0:01:58]} 16. Nxe7+ {[%clk 0:01:42]}  Kh8 {[%clk 0:01:56]} 17. Qf3 {[%clk 0:01:43]}  Qe6 {[%clk 0:01:50]} 18. Bxf6 {[%clk 0:01:23]}  Bxf6 {[%clk 0:01:48]} 19. Nd5 {[%clk 0:01:23]}  Bd8 {[%clk 0:01:07]} 20. Rfd1 {[%clk 0:00:35]}  a5 {[%clk 0:00:54]} 21. Nf4 {[%clk 0:00:13]}  Qf6 {[%clk 0:00:47]} 22. Qg3 {[%clk 0:00:09]}  axb4 {[%clk 0:00:44]} 23. axb4 {[%clk 0:00:10]}  Ra2 {[%clk 0:00:40]} 24. Rd3 {[%clk 0:00:07]}  Bb6 {[%clk 0:00:39]} 25. Rf3 {[%clk 0:00:07]}  Qb2 {[%clk 0:00:37]} 26. Rd1 {[%clk 0:00:05]}  Ra1 {[%clk 0:00:32]} 27. Rd3 {[%clk 0:00:03]}  Qb3 {[%clk 0:00:19]} 0-1


[Site "https://www.chess.com"]

[Event "Titled Tuesday Blitz April 19 Early 2022"]
[White "Oganian, Miran"]
[Black "Jaracz, Pawel"]
[WhiteFideId "4122488"]
[BlackFideId "1102222"]
[WhiteElo "2357"]
[BlackElo "2429"]
[Result "1-0"]
[Round "11"]
[TimeControl "180+1"]
[Date "2022.04.19"]
[WhiteClock "0:00:06"]
[BlackClock "0:00:04"]

1. e4 {[%clk 0:02:59]}  c5 {[%clk 0:02:52]} 2. Nf3 {[%clk 0:02:59]}  Nc6 {[%clk 0:02:53]} 3. c3 {[%clk 0:03:00]}  Nf6 {[%clk 0:02:52]} 4. e5 {[%clk 0:03:00]}  Nd5 {[%clk 0:02:53]} 5. d4 {[%clk 0:03:01]}  cxd4 {[%clk 0:02:53]} 6. cxd4 {[%clk 0:03:02]}  d6 {[%clk 0:02:53]} 7. Bc4 {[%clk 0:03:03]}  Nb6 {[%clk 0:02:52]} 8. Bb3 {[%clk 0:03:03]}  d5 {[%clk 0:02:52]} 9. Nh4 {[%clk 0:03:03]}  e6 {[%clk 0:02:48]} 10. Nf3 {[%clk 0:03:03]}  Be7 {[%clk 0:02:47]} 11. Nc3 {[%clk 0:03:04]}  Bd7 {[%clk 0:02:45]} 12. Be3 {[%clk 0:03:05]}  Na5 {[%clk 0:02:45]} 13. Nd2 {[%clk 0:03:05]}  Rc8 {[%clk 0:02:44]} 14. Qg4 {[%clk 0:03:06]}  Kf8 {[%clk 0:02:33]} 15. h4 {[%clk 0:03:05]}  Nxb3 {[%clk 0:02:27]} 16. axb3 {[%clk 0:03:04]}  a6 {[%clk 0:02:23]} 17. Rh3 {[%clk 0:03:04]}  h5 {[%clk 0:02:20]} 18. Qf4 {[%clk 0:03:00]}  f6 {[%clk 0:02:13]} 19. Nf3 {[%clk 0:02:54]}  Be8 {[%clk 0:02:11]} 20. Rg3 {[%clk 0:02:53]}  Bf7 {[%clk 0:02:09]} 21. Kf1 {[%clk 0:02:33]}  Nd7 {[%clk 0:02:08]} 22. Kg1 {[%clk 0:02:30]}  Qb6 {[%clk 0:02:02]} 23. Re1 {[%clk 0:02:03]}  Qxb3 {[%clk 0:02:01]} 24. Bc1 {[%clk 0:02:03]}  Qc2 {[%clk 0:02:00]} 25. Nh2 {[%clk 0:01:29]}  b5 {[%clk 0:01:50]} 26. Rge3 {[%clk 0:01:13]}  fxe5 {[%clk 0:01:32]} 27. dxe5 {[%clk 0:01:10]}  Rc4 {[%clk 0:01:32]} 28. Qf3 {[%clk 0:01:01]}  Nb6 {[%clk 0:01:13]} 29. Ne2 {[%clk 0:00:47]}  Qf5 {[%clk 0:00:58]} 30. Qxf5 {[%clk 0:00:43]}  exf5 {[%clk 0:00:58]} 31. e6 {[%clk 0:00:44]}  Be8 {[%clk 0:00:50]} 32. Rf3 {[%clk 0:00:42]}  g6 {[%clk 0:00:47]} 33. b3 {[%clk 0:00:43]}  Rxh4 {[%clk 0:00:45]} 34. Bb2 {[%clk 0:00:40]}  Rh6 {[%clk 0:00:41]} 35. Bd4 {[%clk 0:00:35]}  Nc8 {[%clk 0:00:37]} 36. Nf4 {[%clk 0:00:34]}  g5 {[%clk 0:00:33]} 37. g3 {[%clk 0:00:33]}  Rg4 {[%clk 0:00:24]} 38. Nxg4 {[%clk 0:00:26]}  hxg4 {[%clk 0:00:23]} 39. Rc3 {[%clk 0:00:27]}  gxf4 {[%clk 0:00:14]} 40. Rxc8 {[%clk 0:00:26]}  fxg3 {[%clk 0:00:13]} 41. fxg3 {[%clk 0:00:26]}  Bd6 {[%clk 0:00:11]} 42. e7+ {[%clk 0:00:25]}  Kf7 {[%clk 0:00:11]} 43. Kg2 {[%clk 0:00:20]}  b4 {[%clk 0:00:06]} 44. Bc5 {[%clk 0:00:18]}  Bxc5 {[%clk 0:00:05]} 45. Rxc5 {[%clk 0:00:19]}  Rd6 {[%clk 0:00:04]} 46. Rc8 {[%clk 0:00:16]}  d4 {[%clk 0:00:04]} 47. Rh1 {[%clk 0:00:17]}  Bc6+ {[%clk 0:00:03]} 48. Kf2 {[%clk 0:00:13]}  Kxe7 {[%clk 0:00:03]} 49. Rh7+ {[%clk 0:00:13]}  Ke6 {[%clk 0:00:03]} 50. Rf8 {[%clk 0:00:09]}  Ke5 {[%clk 0:00:03]} 51. Rhf7 {[%clk 0:00:08]}  Be4 {[%clk 0:00:03]} 52. Ke1 {[%clk 0:00:07]}  d3 {[%clk 0:00:03]} 53. Kd2 {[%clk 0:00:07]}  Rc6 {[%clk 0:00:04]} 54. Re8+ {[%clk 0:00:06]}  Kd4 {[%clk 0:00:04]} 55. Rd7+ {[%clk 0:00:06]}  Kc5 {[%clk 0:00:04]} 56. Rb8 {[%clk 0:00:06]}  a5 {[%clk 0:00:03]} 57. Ke3 {[%clk 0:00:06]}  Rd6 {[%clk 0:00:02]} 58. Ra7 {[%clk 0:00:07]}  Kd5 {[%clk 0:00:03]} 59. Rxa5+ {[%clk 0:00:07]}  Ke6 {[%clk 0:00:03]} 60. Kd2 {[%clk 0:00:07]}  Rc6 {[%clk 0:00:04]} 61. Re8+ {[%clk 0:00:07]}  Kf7 {[%clk 0:00:04]} 62. Rae5 {[%clk 0:00:04]}  Rc2+ {[%clk 0:00:04]} 63. Ke3 {[%clk 0:00:05]}  Re2+ {[%clk 0:00:04]} 64. Kf4 {[%clk 0:00:05]}  Rf2+ {[%clk 0:00:04]} 65. Kg5 {[%clk 0:00:05]}  Bc6 {[%clk 0:00:04]} 66. R5e7# {[%clk 0:00:06]} 1-0


[Site "https://www.chess.com"]

[Event "Titled Tuesday Blitz April 19 Early 2022"]
[White "Omariev, Maksim"]
[Black "Zanette, Edgard Vinicius"]
[WhiteFideId "4193423"]
[BlackFideId "2109263"]
[WhiteElo "2486"]
[BlackElo "2182"]
[Result "1-0"]
[Round "11"]
[TimeControl "180+1"]
[Date "2022.04.19"]
[WhiteClock "0:00:29"]
[BlackClock "0:00:02"]

1. e4 {[%clk 0:03:00]}  c5 {[%clk 0:02:56]} 2. Nf3 {[%clk 0:03:01]}  d6 {[%clk 0:02:57]} 3. d4 {[%clk 0:03:01]}  cxd4 {[%clk 0:02:57]} 4. Nxd4 {[%clk 0:03:02]}  Nf6 {[%clk 0:02:58]} 5. Nc3 {[%clk 0:03:02]}  a6 {[%clk 0:02:58]} 6. h3 {[%clk 0:03:02]}  e5 {[%clk 0:02:58]} 7. Nde2 {[%clk 0:02:58]}  Be7 {[%clk 0:02:56]} 8. g4 {[%clk 0:02:58]}  Be6 {[%clk 0:02:56]} 9. Bg2 {[%clk 0:02:57]}  Nc6 {[%clk 0:02:54]} 10. Be3 {[%clk 0:02:52]}  b5 {[%clk 0:02:53]} 11. g5 {[%clk 0:02:42]}  Nd7 {[%clk 0:02:49]} 12. h4 {[%clk 0:02:40]}  Na5 {[%clk 0:02:45]} 13. b3 {[%clk 0:02:32]}  Rc8 {[%clk 0:02:40]} 14. Qd2 {[%clk 0:02:26]}  b4 {[%clk 0:02:35]} 15. Nd5 {[%clk 0:02:14]}  Bxd5 {[%clk 0:02:31]} 16. exd5 {[%clk 0:02:15]}  f5 {[%clk 0:01:36]} 17. gxf6 {[%clk 0:01:54]}  Nxf6 {[%clk 0:01:31]} 18. Bh3 {[%clk 0:01:49]}  Rb8 {[%clk 0:01:19]} 19. Be6 {[%clk 0:01:44]}  Qc7 {[%clk 0:01:03]} 20. O-O-O {[%clk 0:01:20]}  Ne4 {[%clk 0:00:56]} 21. Qd3 {[%clk 0:01:16]}  Nc5 {[%clk 0:00:26]} 22. Bxc5 {[%clk 0:01:11]}  Qxc5 {[%clk 0:00:26]} 23. Ng3 {[%clk 0:01:02]}  Rf8 {[%clk 0:00:21]} 24. Ne4 {[%clk 0:00:54]}  Qb6 {[%clk 0:00:19]} 25. Rdg1 {[%clk 0:00:50]}  g6 {[%clk 0:00:18]} 26. h5 {[%clk 0:00:50]}  g5 {[%clk 0:00:10]} 27. h6 {[%clk 0:00:47]}  Rf4 {[%clk 0:00:08]} 28. Nxg5 {[%clk 0:00:42]}  Rxf2 {[%clk 0:00:03]} 29. Qxh7 {[%clk 0:00:37]}  Kd8 {[%clk 0:00:02]} 30. Nf7+ {[%clk 0:00:29]} 1-0


[Site "https://www.chess.com"]

[Event "Titled Tuesday Blitz April 19 Early 2022"]
[White "Omelja, Artem"]
[Black "Ajay Krishna, S"]
[WhiteFideId "14119846"]
[BlackFideId "5096430"]
[WhiteElo "2382"]
[BlackElo "2247"]
[Result "1-0"]
[Round "11"]
[TimeControl "180+1"]
[Date "2022.04.19"]
[WhiteClock "0:00:12"]
[BlackClock "0:00:16"]

1. d4 {[%clk 0:03:00]}  d5 {[%clk 0:02:57]} 2. c4 {[%clk 0:03:00]}  e6 {[%clk 0:02:56]} 3. Nc3 {[%clk 0:02:59]}  Bb4 {[%clk 0:02:55]} 4. Nf3 {[%clk 0:02:57]}  Nf6 {[%clk 0:02:55]} 5. cxd5 {[%clk 0:02:54]}  exd5 {[%clk 0:02:54]} 6. Qa4+ {[%clk 0:02:53]}  Nc6 {[%clk 0:02:54]} 7. Bg5 {[%clk 0:02:54]}  h6 {[%clk 0:02:52]} 8. Bxf6 {[%clk 0:02:53]}  Qxf6 {[%clk 0:02:52]} 9. e3 {[%clk 0:02:54]}  O-O {[%clk 0:02:45]} 10. Bb5 {[%clk 0:02:51]}  Qg6 {[%clk 0:02:35]} 11. g3 {[%clk 0:02:31]}  Qe4 {[%clk 0:02:27]} 12. Be2 {[%clk 0:02:04]}  Bg4 {[%clk 0:02:24]} 13. Qxb4 {[%clk 0:01:48]}  Nxb4 {[%clk 0:02:19]} 14. Nxe4 {[%clk 0:01:42]}  dxe4 {[%clk 0:02:15]} 15. Ne5 {[%clk 0:01:42]}  Nc2+ {[%clk 0:02:12]} 16. Kd2 {[%clk 0:01:41]}  Bxe2 {[%clk 0:02:12]} 17. Kxc2 {[%clk 0:01:41]}  Ba6 {[%clk 0:02:13]} 18. Kd2 {[%clk 0:01:41]}  Rfd8 {[%clk 0:02:11]} 19. Rac1 {[%clk 0:01:38]}  f6 {[%clk 0:02:06]} 20. Ng6 {[%clk 0:01:34]}  Rd7 {[%clk 0:02:06]} 21. Nf4 {[%clk 0:01:33]}  b6 {[%clk 0:02:05]} 22. b4 {[%clk 0:01:31]}  Rc8 {[%clk 0:01:56]} 23. Rc3 {[%clk 0:01:21]}  c5 {[%clk 0:01:47]} 24. bxc5 {[%clk 0:01:17]}  bxc5 {[%clk 0:01:47]} 25. Rhc1 {[%clk 0:01:17]}  c4 {[%clk 0:01:43]} 26. Rb1 {[%clk 0:01:17]}  Kf7 {[%clk 0:01:36]} 27. Ne2 {[%clk 0:01:12]}  Ke6 {[%clk 0:01:27]} 28. Ra3 {[%clk 0:01:11]}  c3+ {[%clk 0:01:17]} 29. Nxc3 {[%clk 0:01:09]}  Bd3 {[%clk 0:01:17]} 30. Rb4 {[%clk 0:01:06]}  Rdc7 {[%clk 0:01:17]} 31. Rba4 {[%clk 0:01:04]}  a6 {[%clk 0:01:15]} 32. Rb4 {[%clk 0:01:04]}  Kf5 {[%clk 0:01:14]} 33. h3 {[%clk 0:01:01]}  h5 {[%clk 0:01:06]} 34. Rb2 {[%clk 0:00:52]}  h4 {[%clk 0:00:57]} 35. gxh4 {[%clk 0:00:48]}  Kg6 {[%clk 0:00:42]} 36. f3 {[%clk 0:00:42]}  f5 {[%clk 0:00:41]} 37. Rb6+ {[%clk 0:00:32]}  Kh5 {[%clk 0:00:39]} 38. fxe4 {[%clk 0:00:32]}  fxe4 {[%clk 0:00:35]} 39. Re6 {[%clk 0:00:32]}  Kxh4 {[%clk 0:00:29]} 40. Nxe4 {[%clk 0:00:29]}  Bf1 {[%clk 0:00:27]} 41. Nc5 {[%clk 0:00:25]}  Bxh3 {[%clk 0:00:23]} 42. Rg6 {[%clk 0:00:24]}  Kh5 {[%clk 0:00:19]} 43. Rg3 {[%clk 0:00:18]}  Bf5 {[%clk 0:00:19]} 44. e4 {[%clk 0:00:18]}  Bg4 {[%clk 0:00:16]} 45. Rxa6 {[%clk 0:00:17]}  g5 {[%clk 0:00:15]} 46. e5 {[%clk 0:00:12]}  Rxc5 {[%clk 0:00:15]} 47. dxc5 {[%clk 0:00:12]}  Rxc5 {[%clk 0:00:16]} 48. e6 {[%clk 0:00:10]}  Rd5+ {[%clk 0:00:15]} 49. Ke3 {[%clk 0:00:10]}  Re5+ {[%clk 0:00:15]} 50. Kd4 {[%clk 0:00:11]}  Rxe6 {[%clk 0:00:15]} 51. Rxe6 {[%clk 0:00:11]}  Bxe6 {[%clk 0:00:15]} 52. a4 {[%clk 0:00:12]}  Kh4 {[%clk 0:00:15]} 53. Rg1 {[%clk 0:00:11]}  g4 {[%clk 0:00:15]} 54. Ke4 {[%clk 0:00:11]}  Bd7 {[%clk 0:00:14]} 55. a5 {[%clk 0:00:10]}  g3 {[%clk 0:00:15]} 56. Kf4 {[%clk 0:00:10]}  Bc6 {[%clk 0:00:09]} 57. Rxg3 {[%clk 0:00:10]}  Ba8 {[%clk 0:00:08]} 58. Ra3 {[%clk 0:00:09]}  Kh5 {[%clk 0:00:08]} 59. a6 {[%clk 0:00:08]}  Kg6 {[%clk 0:00:08]} 60. Ke5 {[%clk 0:00:06]}  Kf7 {[%clk 0:00:09]} 61. Kd6 {[%clk 0:00:07]}  Ke8 {[%clk 0:00:09]} 62. Kc7 {[%clk 0:00:07]}  Ke7 {[%clk 0:00:10]} 63. Kb8 {[%clk 0:00:07]}  Bg2 {[%clk 0:00:10]} 64. a7 {[%clk 0:00:08]}  Kd7 {[%clk 0:00:11]} 65. a8=Q {[%clk 0:00:08]}  Bxa8 {[%clk 0:00:11]} 66. Kxa8 {[%clk 0:00:08]}  Kc6 {[%clk 0:00:12]} 67. Ka7 {[%clk 0:00:09]}  Kc7 {[%clk 0:00:12]} 68. Rc3+ {[%clk 0:00:09]}  Kd6 {[%clk 0:00:12]} 69. Kb6 {[%clk 0:00:10]}  Kd7 {[%clk 0:00:12]} 70. Rc5 {[%clk 0:00:11]}  Kd8 {[%clk 0:00:12]} 71. Kc6 {[%clk 0:00:10]}  Ke7 {[%clk 0:00:13]} 72. Rd5 {[%clk 0:00:10]}  Kf7 {[%clk 0:00:14]} 73. Kd6 {[%clk 0:00:11]}  Ke8 {[%clk 0:00:14]} 74. Re5+ {[%clk 0:00:12]}  Kf8 {[%clk 0:00:15]} 75. Ke6 {[%clk 0:00:11]}  Ke8 {[%clk 0:00:14]} 76. Rh5 {[%clk 0:00:12]}  Kd8 {[%clk 0:00:15]} 77. Rh7 {[%clk 0:00:11]}  Kc8 {[%clk 0:00:14]} 78. Kd6 {[%clk 0:00:11]}  Kb8 {[%clk 0:00:15]} 79. Kc6 {[%clk 0:00:12]}  Ka8 {[%clk 0:00:16]} 80. Kb6 {[%clk 0:00:12]} 1-0


[Site "https://www.chess.com"]

[Event "Titled Tuesday Blitz April 19 Early 2022"]
[White "Palacio,Igor Da Paz"]
[Black "Fernandez Hernandez, Gerardo"]
[WhiteFideId "2121140"]
[BlackFideId "2207400"]
[WhiteElo "2144"]
[BlackElo "2091"]
[Result "1-0"]
[Round "11"]
[TimeControl "180+1"]
[Date "2022.04.19"]
[WhiteClock "0:00:06"]
[BlackClock "0:00:08"]

1. e4 {[%clk 0:03:00]}  e6 {[%clk 0:02:59]} 2. Nc3 {[%clk 0:03:00]}  d5 {[%clk 0:03:00]} 3. d3 {[%clk 0:02:58]}  Nf6 {[%clk 0:02:58]} 4. Bg5 {[%clk 0:02:56]}  h6 {[%clk 0:02:51]} 5. Bxf6 {[%clk 0:02:55]}  Qxf6 {[%clk 0:02:50]} 6. exd5 {[%clk 0:02:55]}  Bb4 {[%clk 0:02:49]} 7. Ne2 {[%clk 0:02:43]}  exd5 {[%clk 0:02:43]} 8. a3 {[%clk 0:02:42]}  Bc5 {[%clk 0:02:36]} 9. d4 {[%clk 0:02:35]}  Bd6 {[%clk 0:02:35]} 10. Nxd5 {[%clk 0:02:32]}  Qg5 {[%clk 0:02:24]} 11. Ndc3 {[%clk 0:02:16]}  Bf5 {[%clk 0:02:07]} 12. Nb5 {[%clk 0:01:59]}  O-O {[%clk 0:01:37]} 13. Nxd6 {[%clk 0:01:58]}  cxd6 {[%clk 0:01:37]} 14. Qd2 {[%clk 0:01:54]}  Qg6 {[%clk 0:01:28]} 15. Nf4 {[%clk 0:01:48]}  Re8+ {[%clk 0:01:22]} 16. Be2 {[%clk 0:01:47]}  Qg4 {[%clk 0:01:13]} 17. O-O-O {[%clk 0:01:35]}  Qg5 {[%clk 0:01:01]} 18. h4 {[%clk 0:01:19]}  Qd8 {[%clk 0:00:53]} 19. Bd3 {[%clk 0:00:53]}  Bxd3 {[%clk 0:00:35]} 20. Qxd3 {[%clk 0:00:54]}  Nc6 {[%clk 0:00:35]} 21. g3 {[%clk 0:00:37]}  Rc8 {[%clk 0:00:33]} 22. Kb1 {[%clk 0:00:35]}  Qa5 {[%clk 0:00:26]} 23. g4 {[%clk 0:00:17]}  b5 {[%clk 0:00:23]} 24. Qf5 {[%clk 0:00:16]}  Qd8 {[%clk 0:00:09]} 25. Nd5 {[%clk 0:00:12]}  b4 {[%clk 0:00:08]} 26. axb4 {[%clk 0:00:10]}  Rb8 {[%clk 0:00:06]} 27. c3 {[%clk 0:00:09]}  a5 {[%clk 0:00:06]} 28. b5 {[%clk 0:00:06]}  Rxb5 {[%clk 0:00:05]} 29. Nf6+ {[%clk 0:00:06]}  Qxf6 {[%clk 0:00:04]} 30. Qxb5 {[%clk 0:00:06]}  Ne7 {[%clk 0:00:02]} 31. Qxe8+ {[%clk 0:00:06]}  Kh7 {[%clk 0:00:01]} 32. Rhe1 {[%clk 0:00:05]}  Qg6+ {[%clk 0:00:02]} 33. Ka1 {[%clk 0:00:03]}  Nd5 {[%clk 0:00:02]} 34. Qe4 {[%clk 0:00:03]}  Qxe4 {[%clk 0:00:03]} 35. Rxe4 {[%clk 0:00:04]}  Nb6 {[%clk 0:00:03]} 36. b3 {[%clk 0:00:03]}  Nc4 {[%clk 0:00:04]} 37. bxc4 {[%clk 0:00:03]}  a4 {[%clk 0:00:05]} 38. c5 {[%clk 0:00:03]}  a3 {[%clk 0:00:06]} 39. cxd6 {[%clk 0:00:04]}  a2 {[%clk 0:00:06]} 40. d7 {[%clk 0:00:04]}  Kg6 {[%clk 0:00:07]} 41. d8=Q {[%clk 0:00:05]}  f6 {[%clk 0:00:08]} 42. Qe8+ {[%clk 0:00:05]}  Kh7 {[%clk 0:00:08]} 43. h5 {[%clk 0:00:05]}  f5 {[%clk 0:00:08]} 44. Qg6+ {[%clk 0:00:05]}  Kg8 {[%clk 0:00:08]} 45. Re8# {[%clk 0:00:06]} 1-0


[Site "https://www.chess.com"]

[Event "Titled Tuesday Blitz April 19 Early 2022"]
[White "Petrovic, Aleksa"]
[Black "Yanayt, Eugene"]
[WhiteFideId "967629"]
[BlackFideId "2020165"]
[WhiteElo "2198"]
[BlackElo "2046"]
[Result "1-0"]
[Round "11"]
[TimeControl "180+1"]
[Date "2022.04.19"]
[WhiteClock "0:00:06"]
[BlackClock "0:00:11"]

1. d4 {[%clk 0:03:00]}  Nf6 {[%clk 0:02:59]} 2. c4 {[%clk 0:03:00]}  g6 {[%clk 0:02:58]} 3. Nc3 {[%clk 0:02:59]}  Bg7 {[%clk 0:02:57]} 4. e4 {[%clk 0:02:59]}  d6 {[%clk 0:02:56]} 5. Be2 {[%clk 0:02:59]}  O-O {[%clk 0:02:55]} 6. Bg5 {[%clk 0:03:00]}  Na6 {[%clk 0:02:51]} 7. Qd2 {[%clk 0:02:59]}  e5 {[%clk 0:02:49]} 8. d5 {[%clk 0:02:59]}  Nc5 {[%clk 0:02:44]} 9. f3 {[%clk 0:02:46]}  a5 {[%clk 0:02:36]} 10. Bd1 {[%clk 0:02:41]}  Bd7 {[%clk 0:02:32]} 11. b3 {[%clk 0:02:38]}  Qe8 {[%clk 0:02:29]} 12. Nge2 {[%clk 0:02:33]}  Nh5 {[%clk 0:02:29]} 13. Bc2 {[%clk 0:02:24]}  Nf4 {[%clk 0:02:28]} 14. Nxf4 {[%clk 0:02:18]}  exf4 {[%clk 0:02:28]} 15. Bxf4 {[%clk 0:02:17]}  f5 {[%clk 0:02:28]} 16. O-O {[%clk 0:02:10]}  fxe4 {[%clk 0:02:25]} 17. fxe4 {[%clk 0:02:09]}  b5 {[%clk 0:02:11]} 18. Rae1 {[%clk 0:01:59]}  b4 {[%clk 0:01:59]} 19. Nd1 {[%clk 0:01:52]}  a4 {[%clk 0:01:58]} 20. Qe3 {[%clk 0:01:39]}  axb3 {[%clk 0:01:57]} 21. axb3 {[%clk 0:01:38]}  Ra2 {[%clk 0:01:53]} 22. Bb1 {[%clk 0:01:36]}  Ra1 {[%clk 0:01:49]} 23. Nf2 {[%clk 0:01:25]}  Ra3 {[%clk 0:01:47]} 24. Bc2 {[%clk 0:01:22]}  Be5 {[%clk 0:01:33]} 25. Bh6 {[%clk 0:00:56]}  Rf7 {[%clk 0:01:14]} 26. Nh3 {[%clk 0:00:53]}  Bg7 {[%clk 0:00:52]} 27. Bxg7 {[%clk 0:00:45]}  Kxg7 {[%clk 0:00:51]} 28. Rxf7+ {[%clk 0:00:41]}  Qxf7 {[%clk 0:00:49]} 29. e5 {[%clk 0:00:40]}  Bxh3 {[%clk 0:00:43]} 30. gxh3 {[%clk 0:00:30]}  dxe5 {[%clk 0:00:33]} 31. Qxc5 {[%clk 0:00:28]}  Ra2 {[%clk 0:00:31]} 32. Bb1 {[%clk 0:00:22]}  Rb2 {[%clk 0:00:26]} 33. Qe3 {[%clk 0:00:21]}  Qf6 {[%clk 0:00:19]} 34. Be4 {[%clk 0:00:16]}  Qh4 {[%clk 0:00:16]} 35. Bg2 {[%clk 0:00:15]}  Rxb3 {[%clk 0:00:14]} 36. Qxe5+ {[%clk 0:00:14]}  Kh6 {[%clk 0:00:14]} 37. Qe4 {[%clk 0:00:09]}  Qg5 {[%clk 0:00:13]} 38. h4 {[%clk 0:00:08]}  Qf6 {[%clk 0:00:13]} 39. Rf1 {[%clk 0:00:06]}  Qb6+ {[%clk 0:00:12]} 40. Kh1 {[%clk 0:00:06]}  Re3 {[%clk 0:00:11]} 41. Qf4+ {[%clk 0:00:06]}  Kg7 {[%clk 0:00:11]} 42. Qf8# {[%clk 0:00:06]} 1-0


[Site "https://www.chess.com"]